bitfinex/quotes_ETHUSD_20250810
["timestamp","ask_amount","ask_price","bid_price","bid_amount"]
[1754833235049,3.702,4180.5,4180.1,0.070769]
[1754833235760,3.702,4180.5,4180.1,2.46305345]
[1754833236081,3.702,4180.5,4180.1,0.070769]
[1754833236284,30.9418,4180.4,4179.9,0.001]
[1754833236593,0.12,4180.1,4179.9,0.001]
[1754833236745,3.702,4180.0,4179.9,0.001]
[1754833237171,4.6438,4180.0,4179.9,0.001]
[1754833238080,34.1779,4180.0,4179.9,0.001]
[1754833238378,36.01904068,4180.0,4179.9,0.001]
[1754833238544,30.0,4180.0,4179.9,0.001]
[1754833238745,3.702,4180.0,4179.9,0.001]
[1754833239469,4.6438,4180.0,4179.9,0.001]
[1754833241178,37.6438,4180.0,4179.9,0.001]
[1754833241357,6.701,4180.0,4179.9,0.001]
[1754833241748,3.0,4180.0,4179.9,0.001]
[1754833242379,3.12,4180.6,4180.3,2.39215073]
[1754833242548,3.0,4180.4,4180.2,2.39221661]
[1754833242750,6.701,4180.3,4180.2,2.39221661]
[1754833242952,0.12,4180.6,4180.5,2.39205836]
[1754833243150,3.701,4180.6,4180.5,2.83565836]
[1754833244162,2.85745696,4181.4,4180.6,2.39200114]
[1754833244163,0.4659,4181.4,4180.6,2.39200114]
[1754833244369,9.445,4180.7,4180.6,2.83560114]
[1754833244687,9.445,4180.7,4180.6,3.49036709]
[1754833245048,9.445,4180.7,4180.6,3.04676709]
[1754833245248,9.445,4180.7,4179.3,0.001]
[1754833245249,3.0,4180.6,4179.3,0.001]
[1754833245450,3.0,4180.4,4179.3,0.001]
[1754833245664,43.701,4180.3,4179.7,2.39246727]
[1754833245990,3.701,4180.3,4179.4,0.001]
[1754833246152,3.701,4180.3,4179.5,2.39263069]
[1754833246354,4.94369382,4180.3,4179.5,2.39263069]
[1754833246557,0.9418,4180.2,4179.4,0.001]
[1754833246769,3.701,4180.1,4179.5,2.39258495]
[1754833246989,3.701,4180.1,4179.6,2.39257253]
[1754833247494,0.4713,4180.0,4179.5,2.39262632]
[1754833247669,3.701,4179.9,4179.5,2.39262632]
[1754833247869,3.701,4179.9,4179.6,2.39257281]
[1754833248470,3.701,4179.9,4179.7,2.3925162]
[1754833249178,3.701,4179.9,4179.4,2.39363585]
[1754833249886,3.701,4179.9,4179.5,2.39263069]
[1754833250060,3.701,4179.9,4179.6,2.39254589]
[1754833250557,3.701,4179.9,4179.8,2.39245896]
[1754833251793,3.701,4179.9,4179.4,0.4756]
[1754833251794,3.701,4179.9,4179.7,2.39250577]
[1754833252373,3.701,4179.9,4179.6,2.39255957]
[1754833252695,3.701,4179.9,4179.7,2.39251408]
[1754833253379,3.701,4179.9,4179.5,2.39261898]
[1754833253556,3.701,4179.9,4179.4,0.001]
[1754833253760,3.701,4179.9,4179.7,2.39245937]
[1754833253984,3.701,4179.9,4179.4,0.001]
[1754833254184,3.701,4179.9,4179.8,2.39245896]
[1754833254495,3.701,4179.9,4179.7,2.39251005]
[1754833255286,4.1723,4179.9,4179.7,2.39251005]
[1754833255475,4.1723,4179.9,4179.8,2.39245896]
[1754833255865,3.701,4179.9,4179.8,2.39245896]
[1754833257565,3.7,4179.9,4179.4,0.121]
[1754833257771,3.7,4179.9,4179.5,2.39263069]
[1754833258299,3.7,4179.9,4179.7,2.39246181]
[1754833258478,3.7,4179.9,4179.4,0.121]
[1754833258674,3.7,4179.9,4179.5,2.39263069]
[1754833258890,3.7,4179.9,4179.7,2.39249194]
[1754833259499,3.7,4179.9,4179.6,2.39257345]
[1754833259799,3.7,4179.9,4179.8,2.39245896]
[1754833260003,3.7,4179.9,4179.4,0.5956]
[1754833260202,0.12,4180.0,4179.9,2.39240173]
[1754833260405,0.1192,4180.7,4180.6,2.39200114]
[1754833260698,0.30093842,4181.3,4180.6,0.9254]
[1754833260868,0.1192,4181.6,4181.5,2.3914863]
[1754833261064,3.7,4181.6,4181.5,0.4746]
[1754833261395,3.7,4181.6,4181.5,3.4360863]
[1754833261598,3.7,4181.6,4181.5,2.9852863]
[1754833261775,3.7,4181.6,4181.5,3.4360863]
[1754833261982,3.7,4181.6,4181.5,4.018855]
[1754833263102,3.7,4181.6,4181.5,3.568055]
[1754833264702,3.7,4181.6,4181.5,4.018855]
[1754833265204,3.7,4181.6,4181.5,3.093455]
[1754833265503,3.7,4181.6,4181.5,2.5106863]
[1754833268911,0.002,4182.0,4181.9,2.39125756]
[1754833269284,3.7,4182.0,4181.9,2.98505756]
[1754833269489,3.7,4182.0,4181.9,3.43585756]
[1754833270714,3.7,4182.0,4181.9,2.51045756]
[1754833270888,0.002,4182.0,4181.9,2.51045756]
[1754833271506,3.7,4182.0,4181.9,2.51045756]
[1754833272634,0.002,4182.0,4181.9,3.47523689]
[1754833272814,0.002,4182.0,4181.9,3.92603689]
[1754833272988,1e-08,4182.0,4181.9,3.94994946]
[1754833273382,1e-08,4182.0,4181.9,4.47603689]
[1754833274095,1e-08,4182.0,4181.9,4.49994946]
[1754833274292,1e-08,4182.0,4181.9,4.47603689]
[1754833276587,1e-08,4182.0,4181.9,3.00063689]
[1754833277917,1e-08,4182.0,4181.9,3.43863689]
[1754833278215,1e-08,4182.0,4181.9,3.00063689]
[1754833281302,1e-08,4182.0,4181.9,3.43863689]
[1754833281502,1e-08,4182.0,4181.9,3.91883689]
[1754833282109,1e-08,4182.0,4181.9,4.34963689]
[1754833282522,1e-08,4182.0,4181.9,3.86943689]
[1754833283029,1e-08,4182.0,4181.9,2.88143689]
[1754833285530,4.18330001,4182.0,4181.9,2.39125756]
[1754833285827,4.63170001,4182.0,4180.9,2.39182951]
[1754833286027,3.69500001,4182.0,4180.9,2.39182951]
[1754833286332,0.9367,4181.9,4181.5,2.39144101]
[1754833286631,0.9367,4181.8,4181.5,2.39144101]
[1754833286799,0.3695,4181.9,4181.6,2.39141811]
[1754833287128,0.9367,4181.7,4181.6,2.39141811]
[1754833287293,3.695,4181.7,4181.6,2.39142911]
[1754833287703,4.6317,4181.7,4181.6,2.39142911]
[1754833288142,3.695,4181.7,4181.6,2.39142911]
[1754833288504,4.6317,4181.7,4181.6,2.39142911]
[1754833289745,4.6317,4181.7,4180.8,0.001]
[1754833290038,0.9367,4181.6,4181.3,2.3915501]
[1754833290203,3.695,4181.7,4181.3,2.3915501]
[1754833290408,0.9367,4181.6,4181.3,2.3915501]
[1754833290708,0.9367,4181.5,4181.1,2.39171509]
[1754833290932,0.9367,4181.4,4181.1,2.39171509]
[1754833291440,0.9367,4181.3,4180.9,2.39182692]
[1754833291651,0.9367,4181.2,4180.8,0.001]
[1754833291952,3.694,4181.1,4180.9,2.39182951]
[1754833292249,0.9367,4181.0,4180.9,2.39182297]
[1754833292814,0.9367,4181.0,4180.8,2.51208614]
[1754833293015,3.694,4181.1,4181.0,2.3917723]
[1754833293927,1e-08,4182.0,4180.8,0.1202]
[1754833294140,1e-08,4182.0,4181.9,2.39125756]
[1754833294312,3.69400001,4182.0,4181.9,2.39125756]
[1754833294923,1e-08,4182.0,4181.9,2.39125756]
[1754833295355,3.69400001,4182.0,4181.9,2.51045756]
[1754833296050,1e-08,4182.0,4181.9,2.39125756]
[1754833296369,3.69400001,4182.0,4181.9,3.30751801]
[1754833296923,1e-08,4182.0,4181.9,3.30751801]
[1754833297158,3.69400001,4182.0,4181.9,3.30751801]
[1754833297534,3.69400001,4182.0,4181.9,2.86951801]
[1754833297933,1e-08,4182.0,4181.9,2.86951801]
[1754833298156,1e-08,4182.0,4181.9,3.78771801]
[1754833298540,1e-08,4182.0,4181.9,4.33771801]
[1754833298964,1e-08,4182.0,4181.9,4.36163058]
[1754833299165,0.002,4182.7,4182.6,2.39085736]
[1754833299473,0.002,4182.7,4182.6,2.6299431]
[1754833299844,0.002,4182.7,4182.6,3.0679431]
[1754833302077,0.002,4182.7,4182.6,3.5481431]
[1754833302260,1e-08,4182.9,4182.8,2.94074304]
[1754833302749,1e-08,4182.9,4182.8,3.85894304]
[1754833302884,1e-08,4182.9,4182.8,4.87713165]
[1754833303376,1e-08,4182.9,4182.8,8.57013165]
[1754833304668,1e-08,4182.9,4182.8,11.57013165]
[1754833305296,1e-08,4183.2,4183.1,2.94057158]
[1754833305664,1e-08,4183.3,4183.2,2.94051443]
[1754833305860,1e-08,4183.3,4183.2,4.85284303]
[1754833306089,1e-08,4183.3,4183.2,4.49184303]
[1754833306288,1e-08,4183.3,4183.2,4.05384303]
[1754833306794,1e-08,4183.3,4183.2,4.49184303]
[1754833307194,1e-08,4183.3,4183.2,4.97204303]
[1754833307396,1e-08,4183.3,4183.2,4.49184303]
[1754833307758,1e-08,4183.3,4183.2,4.05384303]
[1754833307963,1e-08,4183.3,4183.2,4.52164303]
[1754833308271,1e-08,4183.4,4183.3,2.94045729]
[1754833308517,1e-08,4183.4,4183.3,4.04739732]
[1754833310090,1e-08,4183.4,4183.3,3.49739732]
[1754833310291,1e-08,4183.4,4183.3,2.39045729]
[1754833310802,0.94240001,4183.4,4183.3,2.39045729]
[1754833312865,0.94240001,4183.4,4183.2,0.1192]
[1754833313065,0.9424,4183.3,4183.2,2.50971443]
[1754833314878,0.9424,4183.3,4183.2,0.1192]
[1754833315803,0.9424,4183.3,4183.2,2.50971443]
[1754833316601,0.9424,4183.3,4183.2,0.1192]
[1754833316902,0.9424,4183.3,4183.2,2.50971443]
[1754833317103,4.6334,4183.3,4183.2,2.50971443]
[1754833317725,4.5334,4183.3,4183.2,2.50971443]
[1754833319601,1e-08,4183.4,4183.3,2.39045729]
[1754833319806,3.69000001,4183.4,4183.3,2.39045729]
[1754833320004,1e-08,4183.8,4183.7,2.94022874]
[1754833320212,1e-08,4183.8,4183.7,2.50942874]
[1754833320384,0.48250001,4183.8,4183.7,2.50942874]
[1754833320580,1e-08,4183.8,4183.7,2.99940481]
[1754833320785,1e-08,4183.8,4183.7,3.46720481]
[1754833321180,1e-08,4183.8,4183.7,2.99940481]
[1754833321380,1e-08,4183.8,4183.7,2.50942874]
[1754833323496,1e-08,4183.8,4183.7,2.97722874]
[1754833323696,1e-08,4183.8,4183.7,2.50942874]
[1754833324619,0.94240001,4183.8,4183.7,2.50942874]
[1754833325499,0.94240001,4183.8,4183.7,0.1192]
[1754833325702,0.94240001,4183.8,4183.1,2.39056863]
[1754833325703,1.27604126,4183.8,4183.4,0.1192]
[1754833325920,0.9424,4183.7,4183.4,2.50957271]
[1754833326130,0.9424,4183.6,4183.4,2.50957271]
[1754833326424,0.9424,4183.5,4183.4,0.1192]
[1754833326587,0.9424,4183.5,4183.4,2.50960015]
[1754833326791,0.9424,4183.5,4183.3,2.3904476]
[1754833327026,3.689,4183.6,4183.3,2.3904476]
[1754833327027,0.9424,4183.4,4183.3,2.3904476]
[1754833327601,0.9424,4183.4,4183.3,2.39045729]
[1754833329338,0.9424,4183.4,4183.2,2.50969941]
[1754833329500,0.9424,4183.4,4183.3,2.39045729]
[1754833329695,0.4825,4183.4,4183.3,2.39045729]
[1754833330109,0.9424,4183.4,4183.3,2.39045729]
[1754833331133,0.4825,4183.4,4183.3,2.39045729]
[1754833332927,3.689,4183.6,4183.5,2.39034301]
[1754833333709,3.689,4183.6,4183.5,2.50954301]
[1754833334918,1e-08,4183.8,4183.7,2.39022874]
[1754833335298,1e-08,4183.8,4183.7,2.85802874]
[1754833336134,1e-08,4183.8,4183.7,2.39022874]
[1754833336807,1e-08,4183.8,4183.7,2.85802874]
[1754833337113,1e-08,4183.8,4183.7,3.32332874]
[1754833337310,1e-08,4183.8,4183.7,4.32909392]
[1754833337821,0.002,4184.0,4183.7,4.32909392]
[1754833337822,0.002,4184.0,4183.9,2.39011448]
[1754833338018,1e-08,4184.0,4183.9,3.08321562]
[1754833338211,1e-08,4184.0,4183.9,4.01521562]
[1754833338412,1e-08,4184.0,4183.9,3.99131448]
[1754833338736,1e-08,4184.0,4183.9,5.12274075]
[1754833338917,1e-08,4184.0,4183.9,5.09883961]
[1754833339532,1e-08,4184.2,4184.0,0.55]
[1754833339716,1e-08,4184.2,4184.1,6.62800023]
[1754833340133,1e-08,4184.2,4184.1,7.56000023]
[1754833340342,1e-08,4184.2,4184.1,8.67768993]
[1754833340936,1e-08,4184.4,4184.3,2.939886]
[1754833341138,1e-08,4184.4,4184.3,6.627886]
[1754833341337,1e-08,4184.8,4184.6,0.55]
[1754833341538,1e-08,4184.8,4184.7,0.69309657]
[1754833341707,0.002,4185.7,4184.9,2.38954335]
[1754833341906,0.002,4185.7,4185.6,2.38914373]
[1754833342107,0.9349,4185.7,4184.9,0.1192]
[1754833342330,0.4944,4185.6,4184.8,0.55]
[1754833342508,0.4944,4185.6,4185.5,2.38920081]
[1754833342712,0.4944,4185.6,4185.5,2.50840081]
[1754833343508,0.002,4185.7,4185.6,2.38914373]
[1754833343708,0.002,4185.7,4185.6,2.50834373]
[1754833343940,0.002,4185.7,4185.6,2.99809818]
[1754833344129,0.002,4185.7,4185.6,3.46429818]
[1754833345533,0.002,4185.7,4185.6,2.99809818]
[1754833346138,0.002,4185.7,4185.6,0.1192]
[1754833346330,0.4964,4185.7,4185.6,2.50834373]
[1754833346641,0.002,4185.7,4185.6,2.50834373]
[1754833348051,0.002,4185.7,4185.6,2.97454373]
[1754833348437,0.002,4185.7,4185.6,3.41331397]
[1754833348636,0.9349,4185.7,4185.6,0.1192]
[1754833349510,0.9349,4185.7,4184.8,2.3895507]
[1754833349511,4.6209,4185.7,4184.3,2.38985979]
[1754833349716,4.6209,4185.7,4185.4,0.1192]
[1754833349717,0.9329,4185.6,4185.4,0.1192]
[1754833350216,0.9329,4185.5,4184.7,2.3896547]
[1754833350428,1.0521,4185.4,4184.8,0.1192]
[1754833350812,1.0521,4185.4,4184.8,2.50878528]
[1754833350813,0.9329,4185.3,4184.8,2.50878528]
[1754833351014,0.9329,4185.2,4184.8,0.1192]
[1754833351215,0.90770888,4185.5,4185.1,0.1192]
[1754833351944,0.9329,4185.4,4185.1,2.50857629]
[1754833352144,3.0,4185.6,4185.1,2.50857629]
[1754833352314,0.9329,4185.3,4185.2,2.38936088]
[1754833352516,0.4944,4185.3,4185.2,2.38936088]
[1754833353239,0.4944,4185.3,4185.2,2.38937207]
[1754833353441,0.4944,4185.3,4185.1,0.1192]
[1754833353945,0.4385,4185.5,4185.1,0.1192]
[1754833354117,3.8072,4185.7,4185.1,0.1192]
[1754833354449,3.688,4185.7,4185.5,2.38914762]
[1754833354646,3.688,4185.7,4185.6,2.63997849]
[1754833354647,0.002,4185.7,4185.6,2.63997849]
[1754833355438,0.002,4186.2,4186.1,2.38885836]
[1754833355841,0.002,4186.2,4186.1,3.32085836]
[1754833356036,0.002,4186.2,4186.1,2.38885836]
[1754833356915,0.002,4186.2,4186.1,3.40505836]
[1754833357263,0.002,4186.2,4186.1,2.96826125]
[1754833358541,0.4964,4186.2,4186.1,2.38885836]
[1754833359150,0.9349,4186.2,4186.1,2.38885836]
[1754833359368,4.6199,4186.2,4186.1,2.38885836]
[1754833359514,3.687,4186.2,4186.1,2.38885836]
[1754833359846,0.002,4186.2,4186.1,2.38885836]
[1754833360143,0.4964,4186.2,4186.1,2.38885836]
[1754833360345,0.9349,4186.2,4186.1,2.38885836]
[1754833360566,0.9349,4186.2,4185.1,3.0]
[1754833360714,0.9329,4186.1,4185.5,2.38914391]
[1754833360920,0.9329,4186.0,4184.6,4.1512]
[1754833361113,0.4944,4185.9,4185.5,2.3891942]
[1754833361317,0.9329,4185.9,4185.4,2.38924478]
[1754833361548,0.9329,4185.8,4185.5,2.38918966]
[1754833361750,0.9329,4185.7,4184.4,0.4662]
[1754833361959,0.9329,4185.6,4183.8,0.4662]
[1754833362154,3.685,4185.5,4184.8,2.38958762]
[1754833362462,40.9329,4185.4,4183.5,0.4662]
[1754833362663,30.0,4185.3,4184.7,2.38960681]
[1754833362881,30.0,4185.3,4184.8,2.38958181]
[1754833363053,30.0,4185.4,4184.8,2.38958181]
[1754833363255,0.9329,4185.2,4184.8,2.38958181]
[1754833363452,2.31704068,4185.3,4184.8,2.38958181]
[1754833363647,0.9329,4185.1,4184.8,2.38958181]
[1754833363848,0.4944,4185.1,4184.7,2.38964784]
[1754833364049,3.685,4185.0,4184.8,2.38955241]
[1754833364245,4.1794,4185.0,4184.8,2.38955241]
[1754833364591,3.685,4185.0,4184.9,2.38954335]
[1754833365191,0.9329,4185.4,4184.9,2.38954335]
[1754833365482,3.685,4185.0,4184.9,2.50874335]
[1754833365777,0.9329,4185.8,4185.4,2.38925659]
[1754833365991,7.00699602,4185.7,4185.3,0.1192]
[1754833366151,1.0521,4185.6,4185.0,0.1192]
[1754833366352,0.59291,4185.6,4185.1,2.38942916]
[1754833366660,0.9329,4185.5,4185.1,2.38942916]
[1754833366857,0.9329,4185.5,4185.4,2.38925789]
[1754833366858,0.4944,4185.5,4185.4,2.38925789]
[1754833367058,3.685,4185.4,4183.9,2.39108411]
[1754833367353,0.002,4186.2,4185.1,2.38938374]
[1754833367354,3.685,4185.3,4185.1,2.38938374]
[1754833367572,4.6089,4185.2,4185.1,2.38938374]
[1754833367766,3.685,4185.2,4185.1,2.38938374]
[1754833367968,3.685,4185.2,4185.1,2.39038374]
[1754833368175,4.1479,4185.2,4185.1,2.39038374]
[1754833369494,3.685,4185.2,4185.1,2.39038374]
[1754833370891,4.6089,4185.2,4185.1,0.001]
[1754833371919,5.32083424,4185.2,4185.1,0.001]
[1754833372789,4.39693424,4185.2,4185.1,0.001]
[1754833372989,3.685,4185.2,4185.1,0.001]
[1754833373636,0.1192,4185.4,4185.1,2.39042613]
[1754833373802,0.002,4185.5,4185.4,2.38925789]
[1754833374005,3.687,4185.5,4185.4,2.38925789]
[1754833374817,0.002,4185.5,4185.4,2.82145789]
[1754833375046,0.002,4185.5,4185.4,3.8443502]
[1754833375641,1e-08,4185.5,4185.4,4.3943502]
[1754833377733,1e-08,4185.5,4185.4,4.5135502]
[1754833379947,1e-08,4186.0,4185.4,2.12429231]
[1754833380154,0.002,4186.2,4186.1,2.38885836]
[1754833380155,1e-08,4186.2,4186.1,2.38885836]
[1754833380299,1e-08,4186.2,4186.1,2.86664145]
[1754833380500,1e-08,4186.2,4186.1,3.29884145]
[1754833380898,1e-08,4186.2,4186.1,3.84884145]
[1754833381124,1e-08,4186.2,4186.1,3.53584145]
[1754833381316,1e-08,4186.2,4186.1,2.98584145]
[1754833382259,1e-08,4186.2,4186.1,3.41804145]
[1754833383439,1e-08,4186.2,4186.1,3.44193003]
[1754833383660,1e-08,4186.2,4186.1,3.41804145]
[1754833384020,1e-08,4186.2,4186.1,3.41664145]
[1754833384224,0.002,4186.6,4186.5,2.93863012]
[1754833384441,0.002,4186.6,4186.5,3.49525385]
[1754833384735,0.002,4186.6,4186.5,4.04665385]
[1754833385235,0.002,4186.6,4186.5,4.02276755]
[1754833385735,0.002,4186.6,4186.5,3.59056755]
[1754833388039,0.002,4186.6,4186.5,2.50783012]
[1754833389154,0.9259,4186.6,4186.5,2.50783012]
[1754833389356,0.4649,4186.6,4186.5,2.50783012]
[1754833389855,0.9259,4186.6,4186.5,2.50783012]
[1754833390156,0.002,4186.6,4186.5,2.50783012]
[1754833390954,0.9259,4186.6,4186.5,2.50783012]
[1754833391564,0.4649,4186.6,4186.5,2.50783012]
[1754833392554,0.002,4186.6,4186.5,2.50783012]
[1754833394158,0.002,4186.6,4186.5,3.43207636]
[1754833394356,0.002,4186.6,4186.5,3.98207636]
[1754833395863,0.002,4186.6,4186.5,2.99987636]
[1754833396062,0.002,4186.6,4186.5,2.50783012]
[1754833400753,0.9306,4186.6,4186.5,2.50783012]
[1754833401694,0.9306,4186.6,4186.5,0.1192]
[1754833401843,0.9306,4186.6,4186.5,0.1023482]
[1754833402187,4.6136,4186.6,4186.3,0.1192]
[1754833402480,1.39016,4186.5,4186.3,0.1192]
[1754833402681,1.39016,4186.5,4186.3,2.50793296]
[1754833402983,0.9286,4186.4,4186.3,0.1192]
[1754833403184,0.4697,4186.4,4186.3,2.50794423]
[1754833403484,4.6116,4186.4,4186.3,2.50794423]
[1754833403857,5.07296,4186.4,4186.3,0.1192]
[1754833404047,5.07296,4186.4,4186.3,2.50794423]
[1754833404686,4.6116,4186.4,4186.3,2.50794423]
[1754833405059,4.1527,4186.4,4186.3,2.50794423]
[1754833405405,0.002,4186.6,4186.5,2.38863012]
[1754833405543,3.685,4186.6,4186.5,2.38863012]
[1754833405946,4.6136,4186.6,4186.5,2.38863012]
[1754833406458,4.1547,4186.6,4186.5,2.38863012]
[1754833407154,3.685,4186.6,4186.5,2.38863012]
[1754833407757,3.685,4186.6,4186.5,2.50783012]
[1754833412152,3.685,4186.6,4186.5,2.94963012]
[1754833412581,3.685,4186.6,4186.5,2.50783012]
[1754833412782,4.6136,4186.6,4186.5,2.50783012]
[1754833414879,5.07516,4186.6,4186.3,0.001]
[1754833415080,0.9286,4186.5,4186.4,2.38867468]
[1754833415524,0.9286,4186.5,4186.3,0.1202]
[1754833415734,0.9286,4186.4,4186.3,0.1202]
[1754833416537,0.9286,4186.4,4186.3,0.001]
[1754833416742,1.436116,4186.4,4186.3,0.001]
[1754833416884,36.82480317,4186.4,4186.3,0.001]
[1754833417198,37.33552502,4186.4,4186.3,0.001]
[1754833418008,37.55708983,4186.4,4186.3,0.001]
[1754833418789,8.85127926,4186.4,4186.3,0.001]
[1754833418989,8.62983785,4186.4,4186.3,0.001]
[1754833419224,4.94683785,4186.4,4186.3,0.001]
[1754833419423,8.119116,4186.4,4186.3,0.001]
[1754833419639,8.62983785,4186.4,4186.3,0.001]
[1754833419986,8.74903785,4186.4,4186.3,0.001]
[1754833420190,7.82043785,4186.4,4186.3,0.001]
[1754833420490,7.309716,4186.4,4186.3,0.001]
[1754833422228,7.309716,4186.4,4186.3,2.38974423]
[1754833422229,3.683,4186.4,4186.3,2.38974423]
[1754833422397,0.58276,4186.6,4186.4,2.38867184]
[1754833422598,6.683,4186.5,4186.4,2.38867184]
[1754833422800,7.1527,4186.5,4186.3,2.38973464]
[1754833423545,3.683,4186.5,4186.4,2.38868717]
[1754833423754,0.1212,4186.6,4186.5,2.38863012]
[1754833423911,3.1212,4186.6,4186.5,2.38863012]
[1754833424096,0.002,4186.6,4186.5,2.38863012]
[1754833424501,3.685,4186.6,4186.5,2.83043012]
[1754833424901,3.685,4186.6,4186.5,2.38863012]
[1754833426604,3.685,4186.6,4186.5,2.83043012]
[1754833427634,3.685,4186.6,4186.5,2.38863012]
[1754833431611,3.685,4186.6,4186.4,0.1192]
[1754833431811,0.9254,4186.5,4186.4,2.50788717]
[1754833432138,3.685,4186.6,4186.4,2.50788717]
[1754833434026,4.6104,4186.6,4186.5,0.001]
[1754833434236,3.685,4186.6,4186.5,0.001]
[1754833434440,6.685,4186.6,4186.5,0.001]
[1754833434634,9.86147306,4186.6,4186.5,0.001]
[1754833434832,10.78687306,4186.6,4186.5,0.001]
[1754833435235,8.3983,4186.6,4186.5,0.001]
[1754833436053,10.78687306,4186.6,4186.5,0.001]
[1754833436870,8.3983,4186.6,4186.5,0.001]
[1754833438843,10.78687306,4186.6,4186.5,0.001]
[1754833439155,8.3983,4186.6,4186.5,0.001]
[1754833440139,10.78687306,4186.6,4186.5,0.001]
[1754833440466,8.3983,4186.6,4186.5,0.001]
[1754833440756,7.964,4186.6,4186.5,0.001]
[1754833441359,0.7899,4186.6,4186.5,0.001]
[1754833441525,3.684,4186.6,4186.5,2.82573012]
[1754833442654,3.684,4186.6,4186.5,0.4371]
[1754833442855,3.684,4186.6,4186.5,0.001]
[1754833443156,4.6094,4186.6,4186.5,0.001]
[1754833443456,4.87508736,4186.6,4186.5,0.001]
[1754833447246,4.1751,4186.6,4186.5,0.001]
[1754833447564,3.684,4186.6,4186.5,0.001]
[1754833447963,3.684,4186.6,4186.5,2.38963012]
[1754833448258,3.684,4186.6,4186.5,0.001]
[1754833448757,3.684,4186.6,4186.5,2.38963012]
[1754833449842,3.684,4186.6,4186.5,2.94493012]
[1754833451762,3.684,4186.6,4186.5,2.50883012]
[1754833453864,3.684,4186.6,4186.5,2.94493012]
[1754833454235,3.684,4186.6,4186.5,2.50883012]
[1754833454964,3.684,4186.6,4186.5,0.1202]
[1754833455147,4.6094,4186.6,4186.5,0.1202]
[1754833455335,5.30938624,4186.6,4186.5,0.001]
[1754833456037,5.82053223,4186.6,4186.5,0.001]
[1754833456471,11.20910529,4186.6,4186.5,0.001]
[1754833458057,8.38623223,4186.6,4186.5,0.001]
[1754833458250,7.89513223,4186.6,4186.5,0.001]
[1754833458940,8.82593223,4186.6,4186.5,0.001]
[1754833459666,11.21450529,4186.6,4186.5,0.001]
[1754833461869,11.43637738,4186.6,4186.5,0.001]
[1754833464371,8.82593223,4186.6,4186.5,0.001]
[1754833464753,11.21450529,4186.6,4186.5,0.001]
[1754833464945,11.43632522,4186.6,4186.5,0.001]
[1754833466277,41.43630461,4186.6,4186.5,0.001]
[1754833466644,42.42004627,4186.6,4186.5,0.001]
[1754833466840,42.42004627,4186.6,4186.3,0.001]
[1754833467197,0.6692,4186.4,4186.3,1e-08]
[1754833467343,2.38885836,4186.1,4186.0,0.001]
[1754833467679,40.39351071,4186.1,4186.0,0.001]
[1754833467868,41.8354567,4186.1,4186.0,0.001]
[1754833468183,40.98486732,4186.1,4186.0,0.001]
[1754833468344,42.7909565,4186.1,4186.0,0.001]
[1754833469071,43.64086387,4186.1,4186.0,0.001]
[1754833469276,43.64052826,4186.1,4186.0,0.001]
[1754833469579,42.79062089,4186.1,4186.0,0.001]
[1754833470080,43.64052826,4186.1,4186.0,0.001]
[1754833470292,42.88631389,4186.1,4186.0,0.001]
[1754833471043,42.88554661,4186.1,4186.0,0.001]
[1754833471239,43.73545398,4186.1,4186.0,0.001]
[1754833471469,42.88554661,4186.1,4186.0,0.001]
[1754833471667,43.73545398,4186.1,4186.0,0.001]
[1754833471877,42.88554661,4186.1,4186.0,0.001]
[1754833473082,42.75288658,4186.1,4186.0,0.001]
[1754833473249,43.38903893,4186.1,4186.0,0.001]
[1754833473902,43.38881977,4186.1,4186.0,0.001]
[1754833474112,0.095693,4186.1,4186.0,0.4479]
[1754833474256,3.775693,4186.1,4186.0,0.4479]
[1754833474452,9.16455136,4186.1,4186.0,0.001]
[1754833474656,9.06885836,4186.1,4186.0,0.001]
[1754833474950,6.06885836,4186.1,4186.0,0.001]
[1754833475189,9.06885836,4186.1,4186.0,0.001]
[1754833475392,10.00770082,4186.1,4186.0,0.001]
[1754833475876,10.48580082,4186.1,4186.0,0.001]
[1754833477385,40.93850082,4186.1,4186.0,0.001]
[1754833477586,41.44753518,4186.1,4186.0,0.001]
[1754833477761,41.76414761,4186.1,4186.0,0.001]
[1754833478088,42.40029996,4186.1,4186.0,0.001]
[1754833478579,41.76414761,4186.1,4186.0,0.001]
[1754833478791,42.40029996,4186.1,4186.0,0.001]
[1754833479405,41.31144761,4186.1,4186.0,0.001]
[1754833479691,40.61242418,4186.1,4186.0,0.001]
[1754833480063,7.71453146,4186.1,4186.0,0.001]
[1754833480357,7.71353146,4186.1,4186.0,0.4479]
[1754833480888,7.71353146,4186.1,4186.0,0.9438]
[1754833480889,7.61784246,4186.1,4186.0,0.9438]
[1754833481096,3.679,4186.1,4186.0,0.9438]
[1754833481289,3.679,4186.1,4186.0,3.33271543]
[1754833481876,3.679,4186.1,4186.0,0.9438]
[1754833482392,3.679,4186.1,4186.0,3.33271543]
[1754833482893,0.002,4186.6,4186.0,3.33271543]
[1754833483094,3.679,4186.5,4186.3,2.38873577]
[1754833483261,0.002,4186.6,4186.4,3.33148665]
[1754833483462,6.679,4186.5,4186.4,3.33148665]
[1754833483659,6.679,4186.5,4186.4,2.88458665]
[1754833483960,0.002,4186.6,4186.5,2.38863012]
[1754833484196,0.002,4186.6,4186.5,3.33143012]
[1754833484378,3.681,4186.6,4186.5,3.33143012]
[1754833486391,3.681,4186.6,4186.5,0.4469]
[1754833487391,3.681,4186.6,4186.1,0.4469]
[1754833487590,3.681,4186.6,4186.0,0.001]
[1754833487591,2.38869593,4186.4,4186.0,0.001]
[1754833487800,3.1192,4186.5,4186.0,0.001]